fUSD/lending_fUSD_20250313
["ID","MTS","AMOUNT","RATE_DAILY","PERIOD"]
[356046014,1741845031971,-150.0,9.182e-05,2]
[356046015,1741845031980,-378.04,9.206e-05,2]
[356046016,1741845031989,-378.04,9.23e-05,2]
[356046017,1741845031998,-150.0,9.233e-05,2]
[356046018,1741845032007,-300.0,9.24e-05,2]
[356046019,1741845032016,-23900.0,9.241e-05,2]
[356046020,1741845032026,-378.04,9.254e-05,2]
[356046021,1741845032035,-5.69,9.271e-05,2]
[356046022,1741845032044,-378.04,9.279e-05,2]
[356046023,1741845032053,-378.04,9.303e-05,2]
[356046024,1741845032062,-378.04,9.327e-05,2]
[356046025,1741845032071,-378.04,9.351e-05,2]
[356046026,1741845032080,-418.3314908,9.358e-05,2]
[356046027,1741845032089,-378.04,9.375e-05,2]
[356046028,1741845032098,-378.04,9.399e-05,2]
[356046029,1741845032107,-378.04,9.423e-05,2]
[356046030,1741845032118,-378.04,9.447e-05,2]
[356046031,1741845032127,-378.04,9.471e-05,2]
[356046032,1741845032136,-199.57,9.475e-05,2]
[356046033,1741845032145,-378.04,9.496e-05,2]
[356046034,1741845032154,-378.04,9.52e-05,2]
[356046035,1741845032164,-378.04,9.544e-05,2]
[356046036,1741845032173,-378.04,9.568e-05,2]
[356046037,1741845032182,-150.0,9.568e-05,2]
[356046038,1741845032191,-378.04,9.592e-05,2]
[356046039,1741845032200,-194.59,9.607e-05,2]
[356046040,1741845032209,-378.04,9.616e-05,2]
[356046041,1741845032219,-300.0,9.657e-05,2]
[356046042,1741845032228,-32293.56,9.7e-05,2]
[356046043,1741845032237,-150.0,9.752e-05,2]
[356046044,1741845032246,-10494.01283363,9.79e-05,2]
[356046045,1741845032255,-1250.0,9.8e-05,2]
[356046047,1741845032265,-51698.87197239,9.88e-05,2]
[356046050,1741845032274,-150.0,9.891e-05,2]
[356046051,1741845032283,-267.5407,9.899e-05,2]
[356046054,1741845032293,-282.6228,9.899e-05,2]
[356046056,1741845032302,-1974.087,9.899e-05,2]
[356046058,1741845032311,-27699.34718141,9.899e-05,2]
[356046060,1741845032323,-25210.11801859,9.899e-05,2]
[356046062,1741845032332,-1000.0,9.899e-05,2]
[356046064,1741845032341,-1264.8682,9.899e-05,2]
[356046066,1741845032350,-1250.0,9.899e-05,2]
[356046068,1741845032359,-1000.0,9.9e-05,2]
[356046070,1741845032369,-5000.0,9.9e-05,2]
[356046072,1741845032378,-2139.54071541,9.9e-05,2]
[356046093,1741845037921,-5530.11402359,9.9e-05,2]
[356046095,1741845037933,-150.0,9.931e-05,2]
[356046097,1741845037944,-4877.57656127,9.973e-05,2]
[356046128,1741845039738,-819.06175416,9.973e-05,2]
[356046129,1741845039812,-3868.2,9.973e-05,2]
[356046130,1741845039823,-210.16168457,9.973e-05,2]
[356046131,1741845039833,-500.0,9.973e-05,2]
[356046132,1741845039842,-152.35862146,9.973e-05,2]
[356046133,1741845039852,-179.72108032,9.98e-05,2]
[356046134,1741845039862,-1074.8595888,9.994e-05,2]
[356046135,1741845039873,-2145.2144185,9.994e-05,2]
[356046136,1741845039882,-1143.03449543,9.994e-05,2]
[356046137,1741845039935,-3398.39043487,9.994e-05,2]
[356046138,1741845039945,-10726.0705837,9.994e-05,2]
[356046139,1741845039959,-1358.61740743,9.999e-05,3]
[356046140,1741845039970,-199.83521798,9.999e-05,3]
[356046141,1741845039982,-154.789,9.999e-05,2]
[356046142,1741845039991,-2574.286,9.999e-05,2]
[356046143,1741845040001,-500.0,9.999e-05,2]
[356046144,1741845040011,-350.0,9.999e-05,2]
[356046145,1741845040021,-500.0,9.999e-05,7]
[356046146,1741845040031,-500.0,9.999e-05,2]
[356046147,1741845040041,-494.53458339,9.999e-05,2]
[356046148,1741845040050,-500.0,9.999e-05,2]
[356046149,1741845040059,-500.0,9.999e-05,2]
[356046150,1741845040069,-500.0,9.999e-05,2]
[356046151,1741845040079,-583.28650944,9.999e-05,2]
[356046152,1741845040088,-600.31742794,9.999e-05,2]
[356046153,1741845040097,-600.31742794,9.999e-05,2]
[356046154,1741845040106,-361.96712901,9.999e-05,2]
[356046155,1741845040116,-705385.83723907,9.999e-05,2]
[356046156,1741845040126,-600.31742794,9.999e-05,2]
[356046157,1741845040135,-600.31742794,0.0001,2]
[356046158,1741845040145,-600.31742794,0.0001,2]
[356046159,1741845040154,-600.31742794,0.0001,2]
[356046160,1741845040163,-600.31742794,0.0001,2]
[356046161,1741845040173,-1483.0,0.0001,2]
[356046162,1741845040182,-600.31742794,0.0001,2]
[356046163,1741845040192,-600.31742794,0.0001,2]
[356046164,1741845040201,-600.31742794,0.0001,2]
[356046166,1741845040211,-600.31742794,0.0001,2]
[356046168,1741845040220,-600.31742794,0.0001,2]
[356046169,1741845040229,-105299.98828877,0.0001,2]
[356046170,1741845040239,-213403.76643501,0.0001,2]
[356046184,1741845041775,-0.00525539,0.0001,2]
[356046185,1741845041815,-4055.43180006,0.0001,2]
[356046186,1741845041958,-306210.45921473,0.0001,2]
[356046187,1741845041968,-2249.20720443,0.0001,2]
[356046188,1741845041978,-210.41,0.0001,2]
[356046189,1741845041988,-1543016.70278928,0.0001,2]
[356046190,1741845041998,-186.038,0.0001,2]
[356046191,1741845042007,-8278.441244,0.0001,2]
[356046192,1741845042016,-947996.7613013,0.0001,2]
[356046193,1741845042026,-151.0,0.0001,2]
[356046194,1741845042035,-151.0,0.0001,2]
[356046195,1741845042045,-151.0,0.0001,2]
[356046196,1741845042055,-151.0,0.0001,2]
[356046197,1741845042064,-150.0,0.0001,2]
[356046198,1741845042073,-150.0,0.0001,2]
[356046199,1741845042082,-150.0,0.0001,2]
[356046200,1741845042091,-150.0,0.0001,2]
[356046201,1741845042101,-150.0,0.0001,2]
[356046202,1741845042110,-6871.96977829,0.0001,2]
[356046203,1741845042119,-562.0072033,0.0001,2]
[356046204,1741845042130,-151.0,0.0001,2]
[356046205,1741845042139,-3411.2922149,0.0001,2]
[356046206,1741845042148,-26307.60095856,0.0001,2]
[356046207,1741845042157,-5621.64097288,0.0001,2]
[356046208,1741845042167,-151.0,0.0001,2]
[356046209,1741845042176,-181.721127,0.0001,2]
[356046210,1741845042186,-181.721127,0.0001,2]
[356046211,1741845042195,-151.0,0.0001,2]
[356046212,1741845042204,-200.0,0.0001,2]
[356046213,1741845042213,-152.850833,0.0001,2]
[356046214,1741845042222,-550.639309,0.0001,2]
[356046215,1741845042231,-151.0,0.0001,2]
[356046216,1741845042241,-550.639309,0.0001,2]
[356046217,1741845042250,-151.455162,0.0001,2]
[356046218,1741845042259,-151.0,0.0001,2]
[356046219,1741845042269,-151.0,0.0001,2]
[356046220,1741845042278,-151.0,0.0001,2]
[356046221,1741845042287,-151.0,0.0001,2]
[356046222,1741845042296,-151.328399,0.0001,2]
[356046223,1741845042305,-151.0,0.0001,2]
[356046224,1741845042314,-151.0,0.0001,2]
[356046225,1741845042323,-253.548376,0.0001,2]
[356046226,1741845042333,-253.548376,0.0001,2]
[356046227,1741845042343,-151.0,0.0001,2]
[356046228,1741845042352,-151.0,0.0001,2]
[356046229,1741845042361,-151.0,0.0001,2]
[356046230,1741845042371,-190.297416,0.0001,2]
[356046231,1741845042380,-151.0,0.0001,2]
[356046232,1741845042389,-151.0,0.0001,2]
[356046233,1741845042400,-151.0,0.0001,2]
[356046234,1741845042410,-151.0,0.0001,2]
[356046235,1741845042419,-170.385005,0.0001,2]
[356046236,1741845042429,-151.0,0.0001,2]
[356046237,1741845042441,-316.700282,0.0001,2]
[356046238,1741845042450,-151.0,0.0001,2]
[356046239,1741845042459,-151.0,0.0001,2]
[356046240,1741845042469,-316.700282,0.0001,2]
[356046241,1741845042478,-151.0,0.0001,2]
[356046242,1741845042488,-526.774914,0.0001,2]
[356046243,1741845042497,-526.774914,0.0001,2]
[356046244,1741845042508,-151.0,0.0001,2]
[356046245,1741845042518,-216.878744,0.0001,2]
[356046246,1741845042527,-4776.52566747,0.0001,2]
[356046248,1741845042537,-2171.579055,0.0001,2]
[356046249,1741845042546,-151.0,0.0001,2]
[356046251,1741845042555,-2171.579055,0.0001,2]
[356046253,1741845042565,-151.0,0.0001,2]
[356046255,1741845042574,-151.0,0.0001,2]
[356046256,1741845042584,-151.0,0.0001,2]
[356046267,1741845042706,-183.38753,0.0001,2]
[356046269,1741845042721,-183.38753,0.0001,2]
[356046272,1741845042730,-360.945422,0.0001,2]
[356046275,1741845042740,-360.945422,0.0001,2]
[356046277,1741845042749,-151.0,0.0001,2]
[356046279,1741845042759,-151.0,0.0001,2]
[356046281,1741845042768,-151.0,0.0001,2]
[356046282,1741845042778,-151.0,0.0001,2]
[356046283,1741845042787,-151.0,0.0001,2]
[356046284,1741845042796,-151.0,0.0001,2]
[356046285,1741845042805,-151.629342,0.0001,2]
[356046286,1741845042814,-151.0,0.0001,2]
[356046287,1741845042823,-286.624034,0.0001,2]
[356046288,1741845042832,-286.624034,0.0001,2]
[356046289,1741845042841,-286.624034,0.0001,2]
[356046290,1741845042850,-286.624034,0.0001,2]
[356046291,1741845042859,-151.0,0.0001,2]
[356046292,1741845042869,-151.0,0.0001,2]
[356046293,1741845042879,-151.0,0.0001,2]
[356046294,1741845042888,-151.0,0.0001,2]
[356046295,1741845042897,-151.0,0.0001,2]
[356046296,1741845042906,-151.0,0.0001,2]
[356046297,1741845042915,-151.0,0.0001,2]
[356046298,1741845042925,-153.966086,0.0001,2]
[356046299,1741845042934,-151.0,0.0001,2]
[356046300,1741845042943,-151.0,0.0001,2]
[356046301,1741845042952,-151.0,0.0001,2]
[356046302,1741845042961,-151.0,0.0001,2]
[356046303,1741845042970,-151.0,0.0001,2]
[356046304,1741845042980,-151.0,0.0001,2]
[356046305,1741845042990,-151.0,0.0001,2]
[356046306,1741845043000,-151.0,0.0001,2]
[356046307,1741845043010,-151.0,0.0001,2]
[356046308,1741845043019,-151.0,0.0001,2]
[356046309,1741845043028,-151.0,0.0001,2]
[356046310,1741845043037,-151.0,0.0001,2]
[356046311,1741845043046,-151.0,0.0001,2]
[356046312,1741845043055,-151.0,0.0001,2]
[356046313,1741845043064,-151.0,0.0001,2]
[356046314,1741845043074,-151.0,0.0001,2]
[356046315,1741845043083,-151.0,0.0001,2]
[356046316,1741845043093,-151.0,0.0001,2]
[356046317,1741845043102,-151.0,0.0001,2]
[356046318,1741845043112,-151.0,0.0001,2]
[356046320,1741845043123,-151.0,0.0001,2]
[356046322,1741845043132,-151.0,0.0001,2]
[356046324,1741845043142,-151.0,0.0001,2]
[356046326,1741845043151,-151.0,0.0001,2]
[356046328,1741845043161,-151.0,0.0001,2]
[356046329,1741845043169,-151.0,0.0001,2]
[356046331,1741845043179,-151.0,0.0001,2]
[356046333,1741845043188,-151.0,0.0001,2]
[356046335,1741845043198,-151.0,0.0001,2]
[356046337,1741845043207,-151.0,0.0001,2]
[356046338,1741845043216,-151.0,0.0001,2]
[356046339,1741845043225,-151.0,0.0001,2]
[356046340,1741845043235,-151.0,0.0001,2]
[356046341,1741845043243,-291.013513,0.0001,2]
[356046342,1741845043253,-315.81466,0.0001,2]
[356046343,1741845043262,-151.0,0.0001,2]
[356046344,1741845043271,-315.81466,0.0001,2]
[356046345,1741845043280,-153.04265,0.0001,2]
[356046346,1741845043289,-315.81466,0.0001,2]
[356046347,1741845043298,-151.11169,0.0001,2]
[356046348,1741845043307,-151.0,0.0001,2]
[356046349,1741845043316,-315.81466,0.0001,2]
[356046350,1741845043326,-151.0,0.0001,2]
[356046351,1741845043335,-151.0,0.0001,2]
[356046352,1741845043344,-151.0,0.0001,2]
[356046353,1741845043353,-152.095032,0.0001,2]
[356046354,1741845043362,-151.0,0.0001,2]
[356046355,1741845043372,-151.0,0.0001,2]
[356046356,1741845043381,-151.0,0.0001,2]
[356046357,1741845043390,-151.0,0.0001,2]
[356046358,1741845043399,-600.31742794,0.0001,2]
[356046359,1741845043407,-151.0,0.0001,2]
[356046360,1741845043416,-151.0,0.0001,2]
[356046361,1741845043429,-151.0,0.0001,2]
[356046362,1741845043438,-151.0,0.0001,2]
[356046363,1741845043447,-151.0,0.0001,2]
[356046364,1741845043456,-151.0,0.0001,2]
[356046365,1741845043467,-185.484,0.0001,2]
[356046366,1741845043476,-185.484,0.0001,2]
[356046367,1741845043485,-185.484,0.0001,2]
[356046368,1741845043494,-185.484,0.0001,2]
[356046369,1741845043506,-151.0,0.0001,2]
[356046370,1741845043515,-151.0,0.0001,2]
[356046371,1741845043525,-151.0,0.0001,2]
[356046372,1741845043534,-151.0,0.0001,2]
[356046373,1741845043544,-151.0,0.0001,2]
[356046374,1741845043554,-151.0,0.0001,2]
[356046375,1741845043563,-151.0,0.0001,2]
[356046376,1741845043572,-151.0,0.0001,2]
[356046377,1741845043582,-151.0,0.0001,2]
[356046378,1741845043591,-151.0,0.0001,2]
[356046379,1741845043600,-151.0,0.0001,2]
[356046380,1741845043609,-151.0,0.0001,2]
[356046381,1741845043619,-151.0,0.0001,2]
[356046382,1741845043628,-151.0,0.0001,2]
[356046383,1741845043637,-151.0,0.0001,2]
[356046384,1741845043646,-151.0,0.0001,2]
[356046385,1741845043656,-151.0,0.0001,2]
[356046386,1741845043665,-151.0,0.0001,2]
[356046387,1741845043674,-151.0,0.0001,2]
[356046388,1741845043683,-151.0,0.0001,2]
[356046389,1741845043692,-151.0,0.0001,2]
[356046390,1741845043701,-151.0,0.0001,2]
[356046391,1741845043710,-151.0,0.0001,2]
[356046392,1741845043720,-151.0,0.0001,2]
[356046393,1741845043729,-151.0,0.0001,2]
[356046394,1741845043738,-151.0,0.0001,2]
[356046395,1741845043747,-151.0,0.0001,2]
[356046396,1741845043757,-151.0,0.0001,2]
[356046397,1741845043766,-151.0,0.0001,2]
[356046398,1741845043775,-151.0,0.0001,2]
[356046399,1741845043784,-151.0,0.0001,2]
[356046400,1741845043793,-151.0,0.0001,2]
[356046401,1741845043802,-151.0,0.0001,2]
[356046402,1741845043811,-151.0,0.0001,2]
[356046403,1741845043821,-151.0,0.0001,2]
[356046404,1741845043830,-151.0,0.0001,2]
[356046405,1741845043840,-151.0,0.0001,2]
[356046406,1741845043850,-151.0,0.0001,2]
[356046407,1741845043859,-151.0,0.0001,2]
[356046408,1741845043868,-227.225096,0.0001,2]
[356046409,1741845043878,-151.0,0.0001,2]
[356046410,1741845043887,-318.05293518,0.0001,2]
[356046411,1741845043896,-151.0,0.0001,2]
[356046412,1741845043905,-151.251096,0.0001,2]
[356046413,1741845043914,-277.137685,0.0001,2]
[356046414,1741845043924,-277.137685,0.0001,2]
[356046415,1741845043933,-151.0,0.0001,2]
[356046416,1741845043942,-151.0,0.0001,2]
[356046417,1741845043951,-156.0,0.0001,2]
[356046418,1741845043960,-156.0,0.0001,2]
[356046419,1741845043969,-156.0,0.0001,2]
[356046420,1741845043978,-183.7788127,0.0001,2]
[356046421,1741845043987,-480.306022,0.0001,2]
[356046422,1741845043996,-480.306022,0.0001,2]
[356046423,1741845044005,-200.01360962,0.0001,2]
[356046424,1741845044015,-2864.0144223,0.00010001,2]
[356046425,1741845044025,-501.0,0.00010027,2]
[356046426,1741845044035,-150.0,0.00010048,2]
[356046427,1741845044044,-200.0,0.000101,2]
[356046428,1741845044053,-420.0,0.00010164,2]
[356046429,1741845044062,-168.04,0.00010216,2]
[356046430,1741845044071,-500.0,0.00010273,2]
[356046431,1741845044080,-350.0,0.00010273,2]
[356046432,1741845044089,-13044.05577691,0.0001028,2]
[356046433,1741845044098,-948.99,0.00010409,2]
[356046434,1741845044107,-1000.0,0.00010459,2]
[356046435,1741845044117,-152.0,0.00010525,2]
[356046436,1741845044126,-637.1,0.00010547,2]
[356046437,1741845044135,-350.0,0.00010547,2]
[356046438,1741845044144,-253.81,0.00010658,2]
[356046439,1741845044153,-151.76,0.00010658,2]
[356046440,1741845044163,-168.04,0.00010722,2]
[356046441,1741845044172,-550.0,0.0001078,2]
[356046442,1741845044182,-350.0,0.00010821,2]
[356046443,1741845044191,-166.08,0.00010932,2]
[356046444,1741845044201,-200.0,0.00010959,2]
[356046445,1741845044211,-200.0,0.00010959,2]
[356046446,1741845044220,-150.0,0.00010959,2]
[356046447,1741845044229,-200.0136096,0.00011084,2]
[356046448,1741845044238,-350.0,0.00011095,2]
[356046449,1741845044247,-896.4709297,0.00011099,2]
[356046450,1741845044256,-248.07250943,0.00011099,2]
[356046451,1741845044266,-587.0,0.0001118,2]
[356046452,1741845044374,-1279.0,0.00011344,2]
[356046453,1741845044394,-2040.615,0.00011344,2]
[356046454,1741845044403,-1418.0,0.00011344,2]
[356046455,1741845044413,-571.0,0.00011344,2]
[356046456,1741845044422,-162.927,0.00011344,2]
[356046457,1741845044432,-644.892,0.00011344,2]
[356046458,1741845044443,-786.0,0.00011344,2]
[356046459,1741845044452,-908.998,0.00011344,2]
[356046460,1741845044461,-542.014,0.00011344,2]
[356046461,1741845044471,-1432.57,0.00011344,2]
[356046462,1741845044480,-1274.856,0.00011344,2]
[356046463,1741845044489,-1306.496,0.00011344,2]
[356046464,1741845044498,-3963.003,0.00011344,2]
[356046465,1741845044510,-1013.0,0.00011344,2]
[356046466,1741845044519,-190.039,0.00011344,2]
[356046467,1741845044529,-150.0,0.00011344,2]
[356046468,1741845044538,-260.96,0.00011356,2]
[356046469,1741845044547,-150.751,0.00011356,2]
[356046470,1741845044557,-150.144,0.00011356,2]
[356046471,1741845044566,-230.872,0.00011356,2]
[356046472,1741845044575,-350.0,0.00011369,2]
[356046473,1741845044585,-2751.0,0.00011507,2]
[356046474,1741845044594,-248.07250942,0.00011544,2]
[356046475,1741845044604,-896.47092969,0.00011544,2]
[356046476,1741845044614,-1000.0,0.00011622,2]
[356046477,1741845044624,-350.0,0.00011643,2]
[356046478,1741845044633,-1000.0,0.00011886,2]
[356046479,1741845044643,-500.0,0.00011886,2]
[356046480,1741845044652,-150.0,0.00011886,2]
[356046481,1741845044661,-500.0,0.00011886,2]
[356046482,1741845044670,-150.0,0.00011886,2]
[356046483,1741845044680,-500.0,0.00011886,2]
[356046484,1741845044689,-500.0,0.00011886,2]
[356046485,1741845044698,-153.92610009,0.000119,2]
[356046486,1741845044708,-350.0,0.00011917,2]
[356046487,1741845044717,-360.34,0.00012014,2]
[356046488,1741845044727,-1000.0,0.00012023,2]
[356046489,1741845044736,-500.0,0.00012023,2]
[356046490,1741845044745,-500.0,0.00012023,2]
[356046491,1741845044755,-500.0,0.00012023,2]
[356046492,1741845044765,-500.0,0.00012023,2]
[356046493,1741845044774,-286.624034,0.00012023,2]
[356046494,1741845044784,-286.624034,0.00012023,2]
[356046495,1741845044793,-163.731382,0.00012023,2]
[356046496,1741845044803,-151.0,0.00012023,2]
[356046497,1741845044813,-151.0,0.00012023,2]
[356046498,1741845044822,-151.0,0.00012023,2]
[356046499,1741845044831,-151.0,0.00012023,2]
[356046500,1741845044840,-1000.0,0.0001216,2]
[356046501,1741845044849,-500.0,0.0001216,2]
[356046502,1741845044859,-500.0,0.0001216,2]
[356046503,1741845044868,-500.0,0.0001216,2]
[356046504,1741845044878,-500.0,0.0001216,2]
[356046505,1741845044888,-450.63244393,0.00012191,2]
[356046506,1741845044897,-1000.0,0.00012297,2]
[356046507,1741845044906,-928.02644158,0.00012297,2]
[356046508,1741845044915,-500.0,0.00012297,2]
[356046509,1741845044925,-500.0,0.00012297,2]
[356046510,1741845044935,-500.0,0.00012297,2]
[356046511,1741845044946,-151.0,0.00012297,2]
[356046512,1741845044955,-151.0,0.00012297,2]
[356046513,1741845044965,-151.19317,0.00012297,2]
[356046514,1741845044974,-151.0,0.00012297,2]
[356046515,1741845044984,-526.774914,0.00012297,2]
[356046516,1741845044993,-526.774914,0.00012297,2]
[356046517,1741845045003,-2171.579055,0.00012297,2]
[356046518,1741845045012,-151.0,0.00012297,2]
[356046519,1741845045022,-2171.579055,0.00012297,2]
[356046520,1741845045031,-151.0,0.00012297,2]
[356046521,1741845045041,-183.38753,0.00012297,2]
[356046522,1741845045050,-183.38753,0.00012297,2]
[356046523,1741845045060,-360.945422,0.00012297,2]
[356046524,1741845045069,-360.945422,0.00012297,2]
[356046525,1741845045078,-151.0,0.00012297,2]
[356046526,1741845045088,-151.0,0.00012297,2]
[356046527,1741845045097,-151.0,0.00012297,2]
[356046528,1741845045107,-151.0,0.00012297,2]
[356046529,1741845045116,-151.0,0.00012297,2]
[356046530,1741845045129,-151.0,0.00012297,2]
[356046531,1741845045148,-315.81466,0.00012297,2]
[356046532,1741845045164,-315.81466,0.00012297,2]
[356046533,1741845045183,-185.484,0.00012297,2]
[356046534,1741845045199,-185.484,0.00012297,2]
[356046535,1741845045215,-823.0,0.00012298,2]
[356046536,1741845045233,-1000.0,0.00012434,2]
[356046537,1741845045251,-500.0,0.00012434,2]
[356046538,1741845045269,-582.75701508,0.00012434,2]
[356046539,1741845045287,-733.14719859,0.00012434,2]
[356046540,1741845045304,-151.0,0.00012434,2]
[356046541,1741845045321,-151.0,0.00012434,2]
[356046542,1741845045334,-151.0,0.00012434,2]
[356046543,1741845045352,-151.0,0.00012434,2]
[356046544,1741845045365,-151.0,0.00012434,2]
[356046545,1741845045384,-151.0,0.00012434,2]
[356046546,1741845045397,-151.0,0.00012434,2]
[356046547,1741845045413,-151.0,0.00012434,2]
[356046548,1741845045431,-1000.0,0.00012571,2]
[356046549,1741845045447,-646.90207209,0.00012571,2]
[356046550,1741845045465,-948.99,0.000126,2]
[356046551,1741845045481,-710.11631202,0.00012603,2]
[356046552,1741845045496,-710.11631202,0.00012658,2]
[356046553,1741845045512,-1000.0,0.00012708,2]
[356046554,1741845045527,-710.11631202,0.00012712,2]
[356046556,1741845045543,-710.11631202,0.00012767,2]
[356046557,1741845045558,-154.003251,0.00012775,2]
[356046558,1741845045574,-151.0,0.00012775,2]
[356046559,1741845045589,-277.137685,0.00012775,2]
[356046560,1741845045606,-277.137685,0.00012775,2]
[356046561,1741845045623,-151.0,0.00012775,2]
[356046562,1741845045639,-151.0,0.00012775,2]
[356046563,1741845045654,-480.306022,0.00012775,2]
[356046564,1741845045669,-480.306022,0.00012775,2]
[356046565,1741845045685,-714.86,0.00012775,2]
[356046566,1741845045701,-1000.0,0.00012784,2]
[356046567,1741845045718,-1000.0,0.00012845,2]
[356046568,1741845045735,-710.11631202,0.00012849,2]
[356046569,1741845045750,-200.0136096,0.00012868,2]
[356046570,1741845045766,-710.11631202,0.00012904,2]
[356046571,1741845045782,-710.11631202,0.00012959,2]
[356046572,1741845045797,-1000.0,0.00012982,2]
[356046573,1741845045812,-151.0,0.00012982,2]
[356046574,1741845045827,-151.0,0.00012982,2]
[356046575,1741845045842,-151.0,0.00012982,2]
[356046576,1741845045857,-151.0,0.00012982,2]
[356046577,1741845045874,-316.700282,0.00012982,2]
[356046578,1741845045889,-151.0,0.00012982,2]
[356046579,1741845045904,-151.91552,0.00012982,2]
[356046580,1741845045919,-316.700282,0.00012982,2]
[356046581,1741845045934,-151.0,0.00012982,2]
[356046582,1741845045949,-550.0,0.00013,2]
[356046583,1741845045964,-151.0,0.00013,2]
[356046584,1741845045979,-151.0,0.00013,2]
[356046585,1741845045993,-151.0,0.00013,2]
[356046586,1741845046009,-151.0,0.00013,2]
[356046587,1741845046023,-151.0,0.00013,2]
[356046588,1741845046037,-151.5,0.00013,2]
[356046589,1741845046052,-151.5,0.00013,2]
[356046590,1741845046067,-151.5,0.00013,2]
[356046591,1741845046082,-151.5,0.00013,2]
[356046592,1741845046097,-151.5,0.00013,2]
[356046593,1741845046113,-151.5,0.00013,2]
[356046594,1741845046130,-151.5,0.00013,2]
[356046595,1741845046145,-151.5,0.00013,2]
[356046596,1741845046160,-151.5,0.00013,2]
[356046597,1741845046175,-151.5,0.00013,2]
[356046598,1741845046190,-151.5,0.00013,2]
[356046599,1741845046205,-710.11631202,0.00013014,2]
[356046600,1741845046220,-710.11631202,0.00013068,2]
[356046601,1741845046235,-1000.0,0.00013119,2]
[356046602,1741845046250,-166.08,0.00013119,2]
[356046603,1741845046265,-710.11631202,0.00013151,2]
[356046604,1741845046280,-248.07250942,0.00013188,2]
[356046605,1741845046295,-896.47092969,0.00013188,2]
[356046606,1741845046310,-710.11631202,0.00013205,2]
[356046607,1741845046324,-1000.0,0.00013256,2]
[356046608,1741845046512,-710.11631202,0.0001326,2]
[356046609,1741845046523,-199.57,0.00013266,2]
[356046610,1741845046532,-1000.0,0.00013393,2]
[356046611,1741845046541,-1152.0,0.00013528,2]
[356046612,1741845046550,-1000.0,0.0001353,2]
[356046613,1741845046559,-372.48,0.00013559,2]
[356046614,1741845046569,-16146.78,0.0001365,2]
[356046615,1741845046578,-4776.52566742,0.00013661,2]
[356046616,1741845046587,-1000.0,0.00013667,2]
[356046617,1741845046597,-200.0,0.00013699,2]
[356046618,1741845046606,-151.26850112,0.00013699,2]
[356046619,1741845046615,-1000.0,0.00013804,2]
[356046620,1741845046626,-913.89,0.00013939,2]
[356046621,1741845046635,-1000.0,0.00013941,2]
[356046622,1741845046644,-1000.0,0.00013946,2]
[356046623,1741845046653,-1000.0,0.00014078,2]
[356046624,1741845046662,-1000.0,0.00014215,2]
[356046625,1741845046671,-1279.0,0.00014344,2]
[356046626,1741845046680,-2033.0,0.00014344,2]